[Event "Betsys MČR v online bleskovém šachu 2021"]
[Site "Chess.com"]
[Date "2021.04.17"]
[Round "10"]
[White "Michaela1994"]
[Black "David_Mic"]
[Result "0-1"]
[WhiteElo "1650"]
[BlackElo "2004"]
[TimeControl "180+1"]
[EndTime "10:41:19 PDT"]
[Termination "Uživatel David_Mic zvítězil po vzdání soupeře"]

1. e4 {[%clk 0:03:00.9]} 1... c5 {[%clk 0:02:55.7]} 2. c3 {[%clk 0:03:00.1]}
2... Nf6 {[%clk 0:02:54.3]} 3. e5 {[%clk 0:02:59.5]} 3... Nd5 {[%clk 0:02:54.4]}
4. d4 {[%clk 0:02:59.5]} 4... cxd4 {[%clk 0:02:53]} 5. Nf3 {[%clk 0:02:58.7]}
5... Nc6 {[%clk 0:02:52.3]} 6. cxd4 {[%clk 0:02:53.5]} 6... d6 {[%clk
0:02:51.6]} 7. exd6 {[%clk 0:02:51.1]} 7... Qxd6 {[%clk 0:02:50.9]} 8. Nc3
{[%clk 0:02:51.5]} 8... Bg4 {[%clk 0:02:48.3]} 9. Be2 {[%clk 0:02:49.5]} 9... e6
{[%clk 0:02:44.3]} 10. O-O {[%clk 0:02:48.7]} 10... Be7 {[%clk 0:02:43.4]} 11.
Be3 {[%clk 0:02:33.8]} 11... O-O {[%clk 0:02:41.2]} 12. Qd2 {[%clk 0:02:29]}
12... Rfd8 {[%clk 0:02:32.2]} 13. Rac1 {[%clk 0:02:27.8]} 13... a6 {[%clk
0:02:30]} 14. Rfd1 {[%clk 0:02:25.6]} 14... Rac8 {[%clk 0:02:18.1]} 15. h3
{[%clk 0:02:19.2]} 15... Bf5 {[%clk 0:02:09.1]} 16. Bd3 {[%clk 0:02:06.1]} 16...
Bxd3 {[%clk 0:01:58.9]} 17. Qxd3 {[%clk 0:02:05.7]} 17... Nf4 {[%clk 0:01:51.6]}
18. Bxf4 {[%clk 0:01:55.8]} 18... Qxf4 {[%clk 0:01:50.7]} 19. Qe4 {[%clk
0:01:54.8]} 19... Qxe4 {[%clk 0:01:42.5]} 20. Nxe4 {[%clk 0:01:54.4]} 20... Nxd4
{[%clk 0:01:24.4]} 21. Nxd4 {[%clk 0:01:32.3]} 21... Rxc1 {[%clk 0:01:22.3]} 22.
Rxc1 {[%clk 0:01:30.8]} 22... Rxd4 {[%clk 0:01:22]} 23. Rc8+ {[%clk 0:01:30.5]}
23... Rd8 {[%clk 0:01:17.7]} 24. Rxd8+ {[%clk 0:01:29.6]} 24... Bxd8 {[%clk
0:01:17.4]} 25. Nd6 {[%clk 0:01:30.1]} 25... b6 {[%clk 0:01:11.5]} 26. Kf1
{[%clk 0:01:23.4]} 26... Bc7 {[%clk 0:01:10.8]} 27. Nc4 {[%clk 0:01:20.4]} 27...
Kf8 {[%clk 0:01:10.2]} 28. Ke2 {[%clk 0:01:19]} 28... Ke7 {[%clk 0:01:10.2]} 29.
Kd3 {[%clk 0:01:18.7]} 29... b5 {[%clk 0:01:08]} 30. Nd2 {[%clk 0:01:13.8]}
30... Be5 {[%clk 0:01:07.3]} 31. b3 {[%clk 0:01:12]} 31... f5 {[%clk 0:01:00.2]}
32. Nf3 {[%clk 0:01:09.5]} 32... Bf6 {[%clk 0:00:57.8]} 33. g4 {[%clk
0:01:08.6]} 33... g6 {[%clk 0:00:56.8]} 34. Ng1 {[%clk 0:00:53.1]} 34... e5
{[%clk 0:00:56.1]} 35. Ne2 {[%clk 0:00:52.6]} 35... e4+ {[%clk 0:00:54.3]} 36.
Ke3 {[%clk 0:00:50.6]} 36... Be5 {[%clk 0:00:53.2]} 37. f4 {[%clk 0:00:44]}
37... exf3 {[%clk 0:00:48.5]} 38. Kxf3 {[%clk 0:00:43.3]} 38... Kd6 {[%clk
0:00:47.6]} 39. Nc1 {[%clk 0:00:33.5]} 39... Kd5 {[%clk 0:00:41.5]} 40. Nd3
{[%clk 0:00:33.4]} 40... Bd6 {[%clk 0:00:41.7]} 41. Nc1 {[%clk 0:00:26.6]} 41...
Kd4 {[%clk 0:00:40.5]} 42. Ne2+ {[%clk 0:00:26.6]} 42... Kd3 {[%clk 0:00:38.7]}
43. gxf5 {[%clk 0:00:24.7]} 43... gxf5 {[%clk 0:00:37.9]} 44. h4 {[%clk
0:00:24.5]} 44... Be5 {[%clk 0:00:33.8]} 45. h5 {[%clk 0:00:23.9]} 45... Kc2
{[%clk 0:00:30.1]} 46. Nf4 {[%clk 0:00:19.4]} 46... Kb2 {[%clk 0:00:26]} 47. Nd5
{[%clk 0:00:17.6]} 47... Kxa2 {[%clk 0:00:24.9]} 48. b4 {[%clk 0:00:15.5]} 48...
Kb3 {[%clk 0:00:22.8]} 49. Ke3 {[%clk 0:00:12.5]} 49... Kc4 {[%clk 0:00:21.9]}
50. Ne7 {[%clk 0:00:10.7]} 50... f4+ {[%clk 0:00:21]} 51. Kf3 {[%clk 0:00:10.8]}
51... Bc3 {[%clk 0:00:17.9]} 52. Nf5 {[%clk 0:00:08.8]} 52... Bd2 {[%clk
0:00:17.1]} 0-1

[Event "Betsys MČR v online bleskovém šachu 2021"]
[Site "Chess.com"]
[Date "2021.04.17"]
[Round "10"]
[White "Krtecci"]
[Black "ffbp3q"]
[Result "0-1"]
[WhiteElo "2074"]
[BlackElo "2356"]
[TimeControl "180+1"]
[EndTime "10:41:20 PDT"]
[Termination "Uživatel ffbp3q zvítězil na čas"]

1. e4 {[%clk 0:03:00.9]} 1... c5 {[%clk 0:02:59.3]} 2. Nf3 {[%clk 0:03:01.2]}
2... d6 {[%clk 0:02:59.4]} 3. d4 {[%clk 0:03:01.6]} 3... cxd4 {[%clk 0:02:59.6]}
4. Nxd4 {[%clk 0:03:02.5]} 4... Nf6 {[%clk 0:02:59.7]} 5. Nc3 {[%clk 0:03:02.9]}
5... a6 {[%clk 0:03:00]} 6. Bg5 {[%clk 0:03:03.5]} 6... Nbd7 {[%clk 0:02:59.3]}
7. f4 {[%clk 0:03:03.3]} 7... Qc7 {[%clk 0:02:58.8]} 8. Qf3 {[%clk 0:03:02.6]}
8... h6 {[%clk 0:02:57.4]} 9. Bh4 {[%clk 0:03:00.1]} 9... g5 {[%clk 0:02:57.1]}
10. Bg3 {[%clk 0:02:40]} 10... gxf4 {[%clk 0:02:26.1]} 11. Bxf4 {[%clk
0:02:35.5]} 11... e6 {[%clk 0:02:01.9]} 12. O-O-O {[%clk 0:02:30.9]} 12... Be7
{[%clk 0:01:55.9]} 13. Kb1 {[%clk 0:02:11]} 13... Ne5 {[%clk 0:01:51.1]} 14. Qg3
{[%clk 0:01:52.7]} 14... Rg8 {[%clk 0:01:44.1]} 15. Qe3 {[%clk 0:01:43.4]} 15...
Neg4 {[%clk 0:01:26.4]} 16. Qf3 {[%clk 0:01:23.3]} 16... e5 {[%clk 0:01:17.2]}
17. Nf5 {[%clk 0:01:17.2]} 17... Bxf5 {[%clk 0:01:13]} 18. exf5 {[%clk
0:01:09.6]} 18... exf4 {[%clk 0:01:13]} 19. Qxf4 {[%clk 0:00:59.6]} 19... O-O-O
{[%clk 0:01:03.9]} 20. Be2 {[%clk 0:00:57.9]} 20... Ne5 {[%clk 0:01:01.8]} 21.
g3 {[%clk 0:00:53.8]} 21... h5 {[%clk 0:01:00.1]} 22. Rhe1 {[%clk 0:00:51.1]}
22... Kb8 {[%clk 0:00:58.3]} 23. Bf1 {[%clk 0:00:45.6]} 23... Rc8 {[%clk
0:00:54.2]} 24. Qa4 {[%clk 0:00:33.1]} 24... Rg4 {[%clk 0:00:51.2]} 25. Qb3
{[%clk 0:00:28.8]} 25... h4 {[%clk 0:00:33.7]} 26. Be2 {[%clk 0:00:25.2]} 26...
Rg5 {[%clk 0:00:28.6]} 27. gxh4 {[%clk 0:00:23.9]} 27... Rxf5 {[%clk 0:00:26.6]}
28. Bxa6 {[%clk 0:00:22.9]} 28... Rf2 {[%clk 0:00:20.5]} 29. Be2 {[%clk
0:00:20.4]} 29... Bf8 {[%clk 0:00:13.4]} 30. Rf1 {[%clk 0:00:17.5]} 30... Rxf1
{[%clk 0:00:12.8]} 31. Rxf1 {[%clk 0:00:18.4]} 31... Nfd7 {[%clk 0:00:11.7]} 32.
Nd5 {[%clk 0:00:14.5]} 32... Qc5 {[%clk 0:00:11.8]} 33. Ba6 {[%clk 0:00:09.8]}
33... Qa7 {[%clk 0:00:10.5]} 34. Be2 {[%clk 0:00:07.6]} 34... Rc5 {[%clk
0:00:10.3]} 35. Rd1 {[%clk 0:00:07]} 35... Bg7 {[%clk 0:00:09]} 36. h5 {[%clk
0:00:06.8]} 36... Bh6 {[%clk 0:00:08.4]} 37. h4 {[%clk 0:00:06.3]} 37... Ra5
{[%clk 0:00:07.7]} 38. a3 {[%clk 0:00:06]} 38... Nc5 {[%clk 0:00:07.6]} 39. Qg3
{[%clk 0:00:04]} 39... Ka8 {[%clk 0:00:05.6]} 40. Nc7+ {[%clk 0:00:01.6]} 40...
Kb8 {[%clk 0:00:05.4]} 41. Rxd6 {[%clk 0:00:01.5]} 41... Kxc7 {[%clk 0:00:04.9]}
42. Qxe5 {[%clk 0:00:01.9]} 42... Nd7 {[%clk 0:00:04.2]} 43. Rd5+ {[%clk
0:00:01.2]} 43... Kd8 {[%clk 0:00:03.4]} 0-1

[Event "Betsys MČR v online bleskovém šachu 2021"]
[Site "Chess.com"]
[Date "2021.04.17"]
[Round "10"]
[White "FMD-MP"]
[Black "handlovskyjachym"]
[Result "1/2-1/2"]
[WhiteElo "1716"]
[BlackElo "1382"]
[TimeControl "180+1"]
[EndTime "10:41:20 PDT"]
[Termination "Remíza opakováním pozice"]

1. e4 {[%clk 0:03:00.9]} 1... c5 {[%clk 0:02:59.5]} 2. Nf3 {[%clk 0:02:58.9]}
2... d6 {[%clk 0:02:59.4]} 3. b3 {[%clk 0:02:58.9]} 3... Nf6 {[%clk 0:02:59.1]}
4. Nc3 {[%clk 0:02:56.1]} 4... g6 {[%clk 0:02:58.9]} 5. Bb2 {[%clk 0:02:56.2]}
5... Bg7 {[%clk 0:02:59]} 6. Rb1 {[%clk 0:02:49.2]} 6... O-O {[%clk 0:02:52.8]}
7. Bc4 {[%clk 0:02:48.5]} 7... Nc6 {[%clk 0:02:52.5]} 8. O-O {[%clk 0:02:48.3]}
8... Bd7 {[%clk 0:02:50]} 9. h3 {[%clk 0:02:47.6]} 9... Rc8 {[%clk 0:02:49.6]}
10. Re1 {[%clk 0:02:41.8]} 10... a6 {[%clk 0:02:49.6]} 11. Nd5 {[%clk
0:02:40.9]} 11... b5 {[%clk 0:02:46.9]} 12. Bf1 {[%clk 0:02:25.6]} 12... Nh5
{[%clk 0:02:19.5]} 13. Bxg7 {[%clk 0:02:15.9]} 13... Nxg7 {[%clk 0:02:18.6]} 14.
c4 {[%clk 0:02:12]} 14... b4 {[%clk 0:02:14.4]} 15. d4 {[%clk 0:02:08.6]} 15...
cxd4 {[%clk 0:02:07.7]} 16. Nxd4 {[%clk 0:02:09.5]} 16... Nxd4 {[%clk 0:02:05]}
17. Qxd4 {[%clk 0:02:10.4]} 17... Ne6 {[%clk 0:01:52.5]} 18. Qd2 {[%clk
0:02:06.1]} 18... Bc6 {[%clk 0:01:46]} 19. Qxb4 {[%clk 0:01:59.6]} 19... Bxd5
{[%clk 0:01:42.2]} 20. exd5 {[%clk 0:01:59.3]} 20... Nd4 {[%clk 0:01:33.3]} 21.
Qb7 {[%clk 0:01:53.6]} 21... Ra8 {[%clk 0:01:26.3]} 22. Qxe7 {[%clk 0:01:51.9]}
22... Qb6 {[%clk 0:01:17.1]} 23. Qe3 {[%clk 0:01:46.3]} 23... Rae8 {[%clk
0:01:15]} 24. Qc3 {[%clk 0:01:40.2]} 24... Nf5 {[%clk 0:01:06.3]} 25. Rxe8
{[%clk 0:01:36.7]} 25... Rxe8 {[%clk 0:01:05.1]} 26. Re1 {[%clk 0:01:35.2]}
26... Rxe1 {[%clk 0:00:59.5]} 27. Qxe1 {[%clk 0:01:36.1]} 27... Qd4 {[%clk
0:00:57.1]} 28. Qa5 {[%clk 0:01:19.3]} 28... Ng3 {[%clk 0:00:43.2]} 29. Qe1
{[%clk 0:00:58]} 29... Ne4 {[%clk 0:00:39.3]} 30. Qe3 {[%clk 0:00:53.1]} 30...
Qe5 {[%clk 0:00:36]} 31. Bd3 {[%clk 0:00:48.7]} 31... Qa1+ {[%clk 0:00:29.6]}
32. Kh2 {[%clk 0:00:44.6]} 32... f5 {[%clk 0:00:21.3]} 33. Bxe4 {[%clk
0:00:41.9]} 33... fxe4 {[%clk 0:00:20.7]} 34. Qxe4 {[%clk 0:00:41.4]} 34... Qxa2
{[%clk 0:00:19.9]} 35. Qe6+ {[%clk 0:00:40.1]} 35... Kg7 {[%clk 0:00:17.6]} 36.
Qe3 {[%clk 0:00:32.6]} 36... a5 {[%clk 0:00:15.8]} 37. f3 {[%clk 0:00:27.7]}
37... a4 {[%clk 0:00:13.7]} 38. bxa4 {[%clk 0:00:24.3]} 38... Qxa4 {[%clk
0:00:13.7]} 39. Qe7+ {[%clk 0:00:23.2]} 39... Kg8 {[%clk 0:00:11.8]} 40. Qxd6
{[%clk 0:00:22.7]} 40... Qxc4 {[%clk 0:00:11.1]} 41. Qe6+ {[%clk 0:00:17.8]}
41... Kg7 {[%clk 0:00:08]} 42. Qe7+ {[%clk 0:00:17.4]} 42... Kg8 {[%clk
0:00:06.9]} 43. d6 {[%clk 0:00:17.8]} 43... Qf4+ {[%clk 0:00:06.4]} 44. Kh1
{[%clk 0:00:16]} 44... Qc1+ {[%clk 0:00:06.2]} 45. Kh2 {[%clk 0:00:15]} 45...
Qf4+ {[%clk 0:00:06.3]} 46. Kg1 {[%clk 0:00:14.3]} 46... Qc1+ {[%clk 0:00:06.1]}
47. Kf2 {[%clk 0:00:14]} 47... Qd2+ {[%clk 0:00:05.1]} 48. Kg3 {[%clk
0:00:12.9]} 48... Qg5+ {[%clk 0:00:04.6]} 49. Kh2 {[%clk 0:00:11.4]} 49... Qf4+
{[%clk 0:00:03.9]} 1/2-1/2

[Event "Betsys MČR v online bleskovém šachu 2021"]
[Site "Chess.com"]
[Date "2021.04.17"]
[Round "10"]
[White "Lunaticx"]
[Black "MartinCerveny"]
[Result "1/2-1/2"]
[WhiteElo "2980"]
[BlackElo "2673"]
[TimeControl "180+1"]
[EndTime "10:41:21 PDT"]
[Termination "Remíza opakováním pozice"]

1. d4 {[%clk 0:03:00.9]} 1... d5 {[%clk 0:02:58.7]} 2. c4 {[%clk 0:03:00.7]}
2... c6 {[%clk 0:02:59.1]} 3. Nf3 {[%clk 0:03:01.2]} 3... Nf6 {[%clk 0:02:59.1]}
4. e3 {[%clk 0:03:01.2]} 4... Bf5 {[%clk 0:02:58.4]} 5. Nc3 {[%clk 0:03:01.6]}
5... e6 {[%clk 0:02:58.6]} 6. Nh4 {[%clk 0:03:01.9]} 6... Bg4 {[%clk 0:02:58.8]}
7. Qb3 {[%clk 0:03:00.7]} 7... b6 {[%clk 0:02:58.9]} 8. h3 {[%clk 0:02:51.7]}
8... Bh5 {[%clk 0:02:58.8]} 9. g4 {[%clk 0:02:47.5]} 9... Ne4 {[%clk 0:02:58.7]}
10. Ng2 {[%clk 0:02:35.9]} 10... Bg6 {[%clk 0:02:57.5]} 11. Nf4 {[%clk
0:02:35.8]} 11... Qh4 {[%clk 0:02:52.3]} 12. Rh2 {[%clk 0:02:31.5]} 12... Bd6
{[%clk 0:02:50.6]} 13. cxd5 {[%clk 0:02:24.2]} 13... Nxc3 {[%clk 0:02:43]} 14.
bxc3 {[%clk 0:02:11.5]} 14... exd5 {[%clk 0:02:39]} 15. Ba3 {[%clk 0:02:03]}
15... Qe7 {[%clk 0:02:38]} 16. Bxd6 {[%clk 0:01:59.8]} 16... Qxd6 {[%clk
0:02:37.8]} 17. Qb4 {[%clk 0:01:56.2]} 17... Ke7 {[%clk 0:02:02.4]} 18. Bg2
{[%clk 0:01:50.9]} 18... Nd7 {[%clk 0:01:55.7]} 19. Qxd6+ {[%clk 0:01:39.2]}
19... Kxd6 {[%clk 0:01:55.6]} 20. Rh1 {[%clk 0:01:39.4]} 20... b5 {[%clk
0:01:44.2]} 21. h4 {[%clk 0:01:29.9]} 21... h5 {[%clk 0:01:35.9]} 22. g5 {[%clk
0:01:20.1]} 22... Nb6 {[%clk 0:01:32.4]} 23. Nxg6 {[%clk 0:01:13.5]} 23... fxg6
{[%clk 0:01:31.9]} 24. Bf1 {[%clk 0:01:14.4]} 24... Rae8 {[%clk 0:01:23.1]} 25.
Bd3 {[%clk 0:01:13.9]} 25... Re6 {[%clk 0:01:23]} 26. Ke2 {[%clk 0:01:10.4]}
26... a5 {[%clk 0:01:22.9]} 27. a3 {[%clk 0:01:08.2]} 27... a4 {[%clk
0:01:21.8]} 28. Rh3 {[%clk 0:01:05.3]} 28... Rf8 {[%clk 0:01:21.1]} 29. Rf3
{[%clk 0:01:01.6]} 29... Rxf3 {[%clk 0:01:20.3]} 30. Kxf3 {[%clk 0:01:02.5]}
30... Nc8 {[%clk 0:01:20.2]} 31. Rg1 {[%clk 0:00:59.5]} 31... Ke7 {[%clk
0:01:12.3]} 32. Kf4 {[%clk 0:00:54.4]} 32... Nd6 {[%clk 0:01:10.8]} 33. f3
{[%clk 0:00:54.3]} 33... Kf7 {[%clk 0:00:51.3]} 34. e4 {[%clk 0:00:53.4]} 34...
Re7 {[%clk 0:00:49.2]} 35. e5 {[%clk 0:00:40.7]} 35... Ne8 {[%clk 0:00:45.9]}
36. Ke3 {[%clk 0:00:38.9]} 36... Nc7 {[%clk 0:00:43.5]} 37. f4 {[%clk
0:00:39.1]} 37... Ne6 {[%clk 0:00:41.3]} 38. Rf1 {[%clk 0:00:38.2]} 38... Nf8
{[%clk 0:00:41.2]} 39. f5 {[%clk 0:00:33.6]} 39... gxf5 {[%clk 0:00:40.9]} 40.
Bxf5 {[%clk 0:00:33.9]} 40... Ke8 {[%clk 0:00:39.9]} 41. Bd3 {[%clk 0:00:33.4]}
41... Rf7 {[%clk 0:00:38.4]} 42. Rg1 {[%clk 0:00:28.1]} 42... g6 {[%clk
0:00:34.9]} 43. Rg3 {[%clk 0:00:23.2]} 43... Ke7 {[%clk 0:00:34.9]} 44. Ke2
{[%clk 0:00:21.6]} 44... Ke6 {[%clk 0:00:34.9]} 45. Rf3 {[%clk 0:00:20.3]} 45...
Rxf3 {[%clk 0:00:34.2]} 46. Kxf3 {[%clk 0:00:21.2]} 46... Ke7 {[%clk 0:00:33.3]}
47. Ke3 {[%clk 0:00:21.1]} 47... Ke6 {[%clk 0:00:33.3]} 48. Bf1 {[%clk
0:00:21.4]} 48... Ke7 {[%clk 0:00:33.1]} 49. Bd3 {[%clk 0:00:21.7]} 49... Ke6
{[%clk 0:00:32.9]} 50. Kf3 {[%clk 0:00:22.3]} 50... Ke7 {[%clk 0:00:32.9]} 51.
Bf1 {[%clk 0:00:22.6]} 51... Ke6 {[%clk 0:00:32.1]} 52. Bh3+ {[%clk 0:00:22.5]}
52... Ke7 {[%clk 0:00:32.2]} 53. Ke3 {[%clk 0:00:23.1]} 53... Ne6 {[%clk
0:00:29.4]} 54. Bg2 {[%clk 0:00:20.3]} 54... Kf7 {[%clk 0:00:29.4]} 55. Bf1
{[%clk 0:00:20.4]} 55... Ke7 {[%clk 0:00:29.5]} 56. Bd3 {[%clk 0:00:21]} 56...
Kf7 {[%clk 0:00:29.7]} 57. Bc2 {[%clk 0:00:21.6]} 57... Kg7 {[%clk 0:00:29.8]}
58. Bd1 {[%clk 0:00:21.9]} 58... Kf7 {[%clk 0:00:29.9]} 59. Bf3 {[%clk
0:00:21.8]} 59... Kg7 {[%clk 0:00:29.7]} 60. Bg2 {[%clk 0:00:22.3]} 60... Kf7
{[%clk 0:00:29.9]} 61. Bh3 {[%clk 0:00:22.8]} 61... Ke7 {[%clk 0:00:30.1]} 62.
Bxe6 {[%clk 0:00:21.8]} 62... Kxe6 {[%clk 0:00:30.1]} 63. Kd3 {[%clk 0:00:22]}
63... Ke7 {[%clk 0:00:29.9]} 64. Kd2 {[%clk 0:00:22.2]} 64... Ke6 {[%clk
0:00:29.9]} 65. Kd3 {[%clk 0:00:22.8]} 65... Ke7 {[%clk 0:00:30.1]} 66. Kd2
{[%clk 0:00:23.3]} 66... Ke6 {[%clk 0:00:30.4]} 67. Kd3 {[%clk 0:00:23.9]}
1/2-1/2

[Event "Betsys MČR v online bleskovém šachu 2021"]
[Site "Chess.com"]
[Date "2021.04.17"]
[Round "10"]
[White "Krvelacny_krecek"]
[Black "tomasPardubice"]
[Result "0-1"]
[WhiteElo "2359"]
[BlackElo "2103"]
[TimeControl "180+1"]
[EndTime "10:41:21 PDT"]
[Termination "Uživatel tomasPardubice zvítězil na čas"]

1. d4 {[%clk 0:03:00.9]} 1... Nf6 {[%clk 0:02:59.3]} 2. c4 {[%clk 0:03:00.7]}
2... e6 {[%clk 0:02:59.1]} 3. g3 {[%clk 0:03:00.9]} 3... d5 {[%clk 0:02:58.4]}
4. Bg2 {[%clk 0:03:01.1]} 4... dxc4 {[%clk 0:02:58.4]} 5. Nf3 {[%clk 0:03:01.3]}
5... c5 {[%clk 0:02:58]} 6. O-O {[%clk 0:02:58.9]} 6... Nc6 {[%clk 0:02:55.7]}
7. Ne5 {[%clk 0:02:54.7]} 7... Nxe5 {[%clk 0:02:45.9]} 8. dxe5 {[%clk
0:02:54.7]} 8... Qxd1 {[%clk 0:02:45.6]} 9. Rxd1 {[%clk 0:02:54.6]} 9... Nd7
{[%clk 0:02:46.1]} 10. f4 {[%clk 0:02:54]} 10... Be7 {[%clk 0:02:43.4]} 11. Na3
{[%clk 0:02:53.3]} 11... Nb6 {[%clk 0:02:36.5]} 12. Nb5 {[%clk 0:02:52.5]} 12...
O-O {[%clk 0:02:35.7]} 13. Nd6 {[%clk 0:02:43.4]} 13... Rb8 {[%clk 0:02:29.6]}
14. a4 {[%clk 0:02:38.1]} 14... Nd5 {[%clk 0:02:20.9]} 15. Nxc4 {[%clk
0:02:28.1]} 15... Rd8 {[%clk 0:02:15.6]} 16. e4 {[%clk 0:02:25]} 16... Nb4
{[%clk 0:02:11.8]} 17. Rxd8+ {[%clk 0:02:24.3]} 17... Bxd8 {[%clk 0:02:11.8]}
18. Bd2 {[%clk 0:02:19.3]} 18... Bd7 {[%clk 0:02:10.9]} 19. Bxb4 {[%clk
0:02:12.7]} 19... cxb4 {[%clk 0:02:10.3]} 20. b3 {[%clk 0:02:05.9]} 20... Kf8
{[%clk 0:01:54.1]} 21. Bf1 {[%clk 0:01:54.6]} 21... Ke7 {[%clk 0:01:52.4]} 22.
Nd6 {[%clk 0:01:49.3]} 22... Bc6 {[%clk 0:01:46.2]} 23. Bb5 {[%clk 0:01:34.8]}
23... Bc7 {[%clk 0:01:44.5]} 24. Bxc6 {[%clk 0:01:30.3]} 24... bxc6 {[%clk
0:01:43.7]} 25. Nc4 {[%clk 0:01:25.2]} 25... Rd8 {[%clk 0:01:42.5]} 26. Kf2
{[%clk 0:01:15.4]} 26... Rd3 {[%clk 0:01:42]} 27. Rb1 {[%clk 0:01:14.2]} 27...
Rc3 {[%clk 0:01:40.1]} 28. Rb2 {[%clk 0:01:10.5]} 28... Bb6+ {[%clk 0:01:36]}
29. Ke2 {[%clk 0:01:05.7]} 29... Bd4 {[%clk 0:01:23.7]} 30. Rd2 {[%clk
0:01:04.5]} 30... Bb6 {[%clk 0:01:14.6]} 31. Rd3 {[%clk 0:01:00.4]} 31... Rc2+
{[%clk 0:01:13.6]} 32. Nd2 {[%clk 0:00:59.7]} 32... Bg1 {[%clk 0:01:07]} 33. h4
{[%clk 0:00:57.3]} 33... Rc3 {[%clk 0:00:37.3]} 34. Rxc3 {[%clk 0:00:49]} 34...
bxc3 {[%clk 0:00:37.6]} 35. Nf1 {[%clk 0:00:45.4]} 35... c5 {[%clk 0:00:32.6]}
36. Kd3 {[%clk 0:00:45]} 36... Bd4 {[%clk 0:00:32.5]} 37. Nh2 {[%clk 0:00:35.6]}
37... Bf2 {[%clk 0:00:29.5]} 38. Nf1 {[%clk 0:00:34.2]} 38... Bd4 {[%clk
0:00:29.1]} 39. h5 {[%clk 0:00:34.6]} 39... Kd7 {[%clk 0:00:24]} 40. Ne3 {[%clk
0:00:32.4]} 40... f6 {[%clk 0:00:12.3]} 41. exf6 {[%clk 0:00:27.6]} 41... gxf6
{[%clk 0:00:12.6]} 42. Nc4 {[%clk 0:00:17.7]} 42... f5 {[%clk 0:00:11.3]} 43.
exf5 {[%clk 0:00:12.4]} 43... exf5 {[%clk 0:00:11.5]} 44. Ne3 {[%clk 0:00:11.5]}
44... Ke6 {[%clk 0:00:11.1]} 45. Nd1 {[%clk 0:00:04.5]} 45... Kf6 {[%clk
0:00:09.6]} 46. Nxc3 {[%clk 0:00:03.5]} 46... Bf2 {[%clk 0:00:06.3]} 47. Ne2
{[%clk 0:00:02.3]} 47... Kg7 {[%clk 0:00:06.5]} 0-1

[Event "Betsys MČR v online bleskovém šachu 2021"]
[Site "Chess.com"]
[Date "2021.04.17"]
[Round "10"]
[White "petrgnojek"]
[Black "Mitram64"]
[Result "1-0"]
[WhiteElo "2275"]
[BlackElo "2091"]
[TimeControl "180+1"]
[EndTime "10:41:22 PDT"]
[Termination "Uživatel petrgnojek zvítězil na čas"]

1. d4 {[%clk 0:03:00.9]} 1... Nf6 {[%clk 0:02:58.8]} 2. c4 {[%clk 0:03:00.7]}
2... c5 {[%clk 0:02:58.1]} 3. d5 {[%clk 0:03:00.5]} 3... e5 {[%clk 0:02:57.8]}
4. Nc3 {[%clk 0:02:57.3]} 4... d6 {[%clk 0:02:57.8]} 5. e4 {[%clk 0:02:53.1]}
5... Be7 {[%clk 0:02:57.5]} 6. Nf3 {[%clk 0:02:51.7]} 6... O-O {[%clk
0:02:56.7]} 7. Be2 {[%clk 0:02:51.8]} 7... Ne8 {[%clk 0:02:54.8]} 8. O-O {[%clk
0:02:50.3]} 8... g6 {[%clk 0:02:54]} 9. Bh6 {[%clk 0:02:44.8]} 9... Ng7 {[%clk
0:02:53]} 10. Ne1 {[%clk 0:02:43.8]} 10... f5 {[%clk 0:02:50.3]} 11. f3 {[%clk
0:02:42.9]} 11... Bg5 {[%clk 0:02:38.3]} 12. Bxg5 {[%clk 0:02:39.9]} 12... Qxg5
{[%clk 0:02:37.3]} 13. Nd3 {[%clk 0:02:40.1]} 13... a6 {[%clk 0:02:23.2]} 14. a3
{[%clk 0:02:38.8]} 14... Nd7 {[%clk 0:02:18.8]} 15. b4 {[%clk 0:02:37.6]} 15...
b6 {[%clk 0:02:17.2]} 16. Qc1 {[%clk 0:02:27.3]} 16... f4 {[%clk 0:02:14.5]} 17.
bxc5 {[%clk 0:02:20.7]} 17... Nxc5 {[%clk 0:02:09]} 18. Nxc5 {[%clk 0:02:19.8]}
18... bxc5 {[%clk 0:02:07.9]} 19. Rb1 {[%clk 0:02:19.2]} 19... Ra7 {[%clk
0:02:02.2]} 20. Rb6 {[%clk 0:02:16.9]} 20... Bh3 {[%clk 0:01:53.5]} 21. Rf2
{[%clk 0:02:15.5]} 21... Nh5 {[%clk 0:01:36.2]} 22. Bf1 {[%clk 0:01:55.6]} 22...
Bc8 {[%clk 0:01:22.8]} 23. Rxd6 {[%clk 0:01:52.6]} 23... Rg7 {[%clk 0:01:17.8]}
24. Na4 {[%clk 0:01:46]} 24... Qe7 {[%clk 0:01:12.1]} 25. Rb6 {[%clk 0:01:36.2]}
25... Ng3 {[%clk 0:01:09.7]} 26. Rfb2 {[%clk 0:01:26.3]} 26... g5 {[%clk
0:01:00.9]} 27. d6 {[%clk 0:01:10.8]} 27... Qd8 {[%clk 0:00:53.8]} 28. Nxc5
{[%clk 0:00:46.6]} 28... g4 {[%clk 0:00:51.5]} 29. fxg4 {[%clk 0:00:43.5]} 29...
Rxg4 {[%clk 0:00:47.3]} 30. Nd3 {[%clk 0:00:16.7]} 30... Nxe4 {[%clk 0:00:42]}
31. Nxe5 {[%clk 0:00:16.7]} 31... Rg7 {[%clk 0:00:38.6]} 32. Nf3 {[%clk
0:00:15.9]} 32... Nxd6 {[%clk 0:00:35.7]} 33. Qd2 {[%clk 0:00:10.9]} 33... Rd7
{[%clk 0:00:33.4]} 34. c5 {[%clk 0:00:04.6]} 34... Ne4 {[%clk 0:00:24.8]} 35.
Qc2 {[%clk 0:00:04.9]} 35... Kh8 {[%clk 0:00:21.3]} 36. Qxe4 {[%clk 0:00:04.3]}
36... Re8 {[%clk 0:00:17.9]} 37. Qxf4 {[%clk 0:00:03.6]} 37... Rd1 {[%clk
0:00:08.1]} 38. Qf6+ {[%clk 0:00:03]} 38... Qxf6 {[%clk 0:00:06.6]} 39. Rxf6
{[%clk 0:00:03.9]} 39... Bg4 {[%clk 0:00:05]} 40. Rd6 {[%clk 0:00:02.8]} 40...
Rc1 {[%clk 0:00:03.5]} 41. Rbd2 {[%clk 0:00:02.2]} 41... Bxf3 {[%clk 0:00:02.7]}
42. gxf3 {[%clk 0:00:02.5]} 42... Ree1 {[%clk 0:00:02.4]} 43. Rf2 {[%clk
0:00:02.7]} 43... Rxc5 {[%clk 0:00:01.5]} 44. Rxa6 {[%clk 0:00:03.4]} 1-0